[Event "FIDE WTC Prel-B 2022"]
[Site "Jerusalem"]
[Date "2022.11.22"]
[Round "5.10"]
[White "Van Foreest, Lucas"]
[Black "Shevchenko, Kirill"]
[Result "0-1"]
[ECO "E71"]
[WhiteElo "2585"]
[BlackElo "2649"]
[Annotator "TA"]
[PlyCount "52"]
[EventDate "2022.11.20"]
[EventType "team-tourn"]
[EventCountry "ISR"]
[SourceTitle "playchess.com"]
[Source "ChessBase"]
[SourceQuality "1"]
[WhiteTeam "Netherlands"]
[BlackTeam "Ukraine"]
[WhiteTeamCountry "NED"]
[BlackTeamCountry "UKR"]
[TimeControl "2700+10"]

{[%evp 9,52,33,66,45,42,40,27,28,33,32,49,12,0,20,40,0,0,0,4,-16,19,-59,-81,-103,-76,-85,-96,-106,-73,-135,0,0,52,0,14,7,50,-121,-119,-119,-117,-689,-707,-660,-661]} 1. d4 {[%emt 0:00:03]} Nf6 {[%emt 0:00:02]} 2. c4 {[%emt 0:00:03]} g6 {[%emt 0:00:01]} 3. Nc3 {[%emt 0:00:02]} Bg7 {[%emt 0:00:01]} 4. e4 {[%emt 0:00:07]} d6 {[%emt 0:00:02]} 5. h3 {[%emt 0:00:02]} e5 {[%emt 0:00:18]} 6. d5 {[%emt 0:00:25] E71: King's Indian: 4 e4 d6 5 h3.} a5 {[%emt 0:00:03]} 7. Be3 {[%emt 0:01:18]} Na6 {[%emt 0:00:13]} 8. Nf3 {[%emt 0:00:45] White has an edge.} Bd7 $5 {[%emt 0:00:15][%mdl 4] An interesting side line.} 9. Bd3 {[%emt 0:00:38] [#]} Nh5 $146 {[%emt 0:03:15]} ({Predecessor:} 9... O-O 10. O-O Nh5 11. Re1 Kh8 12. Bf1 Qe8 13. Be2 Nf6 14. Nh2 Ng8 15. Qd2 Qe7 {½-½ (48) Martinovic,S (2447)-Damljanovic,B (2564) Paracin 2012}) 10. Qd2 {[%emt 0:02:13]} O-O {[%emt 0:02:33]} 11. O-O-O {[%emt 0:01:02]} Nf4 {[%emt 0:04:43]} 12. Bxf4 {[%emt 0:00:07]} exf4 {[%emt 0:00:01]} 13. Qxf4 {[%emt 0:00:04]} Nc5 {[%emt 0:06:03]} 14. Bc2 {[%emt 0:08:04]} Rb8 {[%emt 0:03:51]} 15. e5 {[%emt 0:04:49]} (15. Nd4 $11) 15... b5 $15 {[%emt 0:01:34]} 16. exd6 {[%emt 0:03:24]} cxd6 {[%emt 0:00:07]} 17. Qxd6 {[%emt 0:00:16]} Nb7 {[%emt 0:00:28]} 18. Qf4 {[%emt 0:00:13]} bxc4 {[%emt 0:00:07]} 19. Ne5 {[%emt 0:04:12]} Nc5 {[%emt 0:03:37]} (19... a4 $17 {[%cal Oa4a3] Hoping for ...a3!} 20. a3 (20. Bxa4 $2 Bxa4 21. Nxa4 Qd6 $19) (20. Nxc4 $2 Na5 $19) 20... Nd6) 20. Rhe1 $11 {[%emt 0:02:29]} Qc7 {[%emt 0:03:30]} (20... a4 $11) 21. Re3 $1 $36 {[%emt 0:05:25][%cal Oe5g6][%mdl 2048] aiming for Nxg6! White fights for an advantage.} Qb7 {[%emt 0:02:37] Chess con chili.} 22. Nxc4 {[%emt 0:00:04]} (22. Qxc4 $2 {loses.} Qxb2+ 23. Kd2 Bf5 $19) 22... a4 {[%emt 0:00:00]} 23. Kd2 $2 {[%emt 0:02:26] [#]} (23. Rd2 $14 {stays ahead.}) 23... Qa6 $1 $17 {[%emt 0:01:57] And now ...Rb4 would win.} ({Resist} 23... Bxc3+ 24. bxc3 Qxd5+ 25. Qd4 $14) 24. a3 {[%emt 0:01:49] [#] Prevents Rb4.} f5 $1 {[%emt 0:06:37][%cal Oc5e4] ...Ne4+! is the strong threat.} (24... g5 25. Qxg5 Kh8 26. Qf4 $16 (26. Rg3 $2 Bh6 $19)) 25. h4 $2 {[%emt 0:02:39][%mdl 8192]} (25. Ne5 $17 Rxb2 26. Nxd7 Nxd7 27. Kc1) 25... Ne4+ $1 $19 {[%emt 0:00:50]} 26. Bxe4 {[%emt 0:00:58]} Qxc4 {[%emt 0:00:26][%mdl 64] Pin.   Weighted Error Value: White=0.47/Black=0.20 (precise)} 0-1

[Event "FIDE WTC Prel-B 2022"]
[Site "Jerusalem"]
[Date "2022.11.22"]
[Round "5.11"]
[White "Bernadskiy, Vitaliy"]
[Black "Warmerdam, Max"]
[Result "1/2-1/2"]
[ECO "A13"]
[WhiteElo "2615"]
[BlackElo "2617"]
[Annotator "TA"]
[PlyCount "97"]
[EventDate "2022.11.20"]
[EventType "team-tourn"]
[EventCountry "ISR"]
[SourceTitle "playchess.com"]
[Source "ChessBase"]
[SourceQuality "1"]
[WhiteTeam "Ukraine"]
[BlackTeam "Netherlands"]
[WhiteTeamCountry "UKR"]
[BlackTeamCountry "NED"]
[TimeControl "2700+10"]

{[%evp 9,97,16,27,16,29,0,0,0,8,0,0,-7,3,-3,0,-6,12,5,11,0,22,22,22,22,22,22,33,12,28,0,10,10,63,63,62,0,0,0,0,7,4,0,0,0,0,0,0,0,0,-44,0,-16,0,0,0,0,8,8,8,8,8,0,41,53,53,-37,0,0,0,-35,-35,-35,-35,-35,-35,-35,-35,-35,-35,-35,-35,-35,-35,-35,0,-35,0,-35,0,-35]} 1. c4 {[%emt 0:00:03]} e6 {[%emt 0:00:02]} 2. g3 {[%emt 0:00:01]} d5 {[%emt 0:00:03]} 3. Bg2 {[%emt 0:00:02]} d4 {[%emt 0:00:07]} 4. Nf3 {[%emt 0:00:13]} Nc6 {[%emt 0:00:04]} 5. O-O {[%emt 0:00:05]} Bc5 {[%emt 0:00:09]} 6. d3 {[%emt 0:00:11] A13: English Opening: 1...e6.} Nf6 {[%emt 0:00:17]} 7. Na3 {[%emt 0:02:32] 7.Nbd2 is the hot move.} O-O {[%emt 0:00:20]} 8. Nc2 {[%emt 0:00:10]} e5 {[%emt 0:00:13]} 9. b4 {[%emt 0:03:56]} Nxb4 {[%emt 0:00:03] [#]} 10. Nxe5 $146 {[%emt 0:00:02]} ({Predecessor:} 10. Nxb4 Bxb4 11. Nxe5 Re8 12. Nf3 Bc5 13. Rb1 Rb8 14. Re1 b6 15. Nd2 Bg4 16. h3 {1-0 (42) Janik,I (2470)-Nguyen,T (2569) Zlin 2020}) 10... Re8 {[%emt 0:02:11]} 11. Nf3 {[%emt 0:00:15]} Nxc2 {[%emt 0:04:51]} 12. Qxc2 {[%emt 0:00:02]} c6 {[%emt 0:00:02]} 13. a4 {[%emt 0:00:31]} Bf5 {[%emt 0:00:46]} 14. Ba3 {[%emt 0:00:57]} Qd6 {[%emt 0:02:51]} 15. Bxc5 {[%emt 0:02:08]} Qxc5 {[%emt 0:00:03]} 16. Qb2 {[%emt 0:00:37]} Rad8 {[%emt 0:00:01][%cal Ba8d8,Bd8d7,Bd7e7,Be7e6][%mdl 32]} 17. Rfe1 {[%emt 0:02:09]} Rd7 {[%emt 0:04:28]} 18. a5 {[%emt 0:01:40]} Bg4 {[%emt 0:00:53]} 19. Qd2 {[%emt 0:00:09]} (19. Qa3 $5 {[%cal Ra3c5]} Qh5 20. Rab1 $11) 19... Qh5 {[%emt 0:02:12]} 20. Qf4 {[%emt 0:01:47] Threatening a6.} c5 {[%emt 0:00:28]} ({Black should play} 20... Bxf3 $11 21. Qxf3 a6) 21. Rab1 {[%emt 0:00:05]} (21. e3 {seems wilder.} dxe3 22. Rxe3 Rxe3 23. Qxe3 Bxf3 24. Qf4) 21... Rde7 {[%emt 0:00:24]} 22. Rb5 {[%emt 0:00:55]} (22. e3 $14) 22... h6 $1 $11 {[%emt 0:00:23]} 23. Qd6 {[%emt 0:05:20]} b6 {[%emt 0:04:12]} (23... Rxe2 24. Rxe2 Rxe2 25. Rxc5 $16) (23... Bxf3 24. Bxf3 Ng4 25. h4 $16 (25. Rxb7 $2 Qxh2+ 26. Kf1 Qxf2#)) 24. axb6 {[%emt 0:02:27]} axb6 {[%emt 0:00:01]} 25. Rb2 {[%emt 0:03:44]} (25. Rxb6 Rxe2 26. Rxe2 Rxe2 $15) 25... Re6 {[%emt 0:00:22]} 26. Qc7 {[%emt 0:00:46]} R8e7 {[%emt 0:00:15]} 27. Qb8+ {[%emt 0:00:06]} Re8 {[%emt 0:00:01]} 28. Qa7 {[%emt 0:00:19]} Qf5 {[%emt 0:03:25][%cal Of5d3]} 29. Rd2 {[%emt 0:04:07]} Qh5 {[%emt 0:01:20]} (29... g5 $5 {[%cal Rh6h5]}) 30. Qa4 {[%emt 0:00:34]} Bxf3 {[%emt 0:02:27]} 31. Bxf3 {[%emt 0:00:07]} Ng4 {[%emt 0:00:01]} 32. h4 {[%emt 0:01:17]} g5 {[%emt 0:03:35]} 33. Kg2 $1 {[%emt 0:01:08] Hoping for Rh1.} gxh4 {[%emt 0:02:23]} 34. Rh1 {[%emt 0:00:09][%cal Be1h1,Bh1h4,Bh4g4][%mdl 32]} Qg5 {[%emt 0:03:45] And now ...Nxf2 would win.} 35. Rxh4 {[%emt 0:00:03]} (35. Bxg4 $5 Qxg4 36. Rxh4 $11) 35... Qxd2 {[%emt 0:04:17]} (35... Nxf2 $5 36. Rf4 {[#]} Rf8 $1 37. Kxf2 Rg6 $11) 36. Rxg4+ {[%emt 0:00:42]} Kf8 $1 {[%emt 0:00:01]} ({Weaker is} 36... Kh8 37. Qd7 Rxe2 38. Bxe2 Qxe2 39. Qxf7 Qxg4 40. Qxe8+ Kh7 41. Qe7+ Kg8 42. Qe8+ Kg7 43. Qe5+ Kg6 44. Qd6+ Kg7 45. Qc7+ (45. Qxb6 Qc8 $18) 45... Kg8 46. Qb8+ (46. Qxb6 Qf5 $18) 46... Kh7 47. Qxb6 $18) 37. Qa7 {[%emt 0:00:20]} (37. Rf4 $1 $14 Rg6 38. Kh3 Rxe2 39. Qd7) 37... Rf6 {[%emt 0:00:05] Strongly threatening ...h5.} 38. Qd7 {[%emt 0:00:52]} h5 {[%emt 0:00:17]} 39. Rg8+ {[%emt 0:00:59][%mdl 64] [#] Discovered Attack, Decoy} Kxg8 {[%emt 0:00:01]} 40. Qxe8+ $15 {[%emt 0:00:02][%mdl 4096] Endgame KQR-KQB} Kg7 {[%emt 0:00:08] White must now prevent ...Qg5.} 41. Bxh5 {[%emt 0:01:24]} Qg5 {[%emt 0:00:45]} 42. Bf3 {[%emt 0:00:16]} Qf5 {[%emt 0:00:02]} 43. Qb8 {[%emt 0:00:31]} Re6 {[%emt 0:00:23]} 44. Kg1 {[%emt 0:00:49]} Qe5 {[%emt 0:00:30]} (44... Qg5 {feels hotter.} 45. Kf1 Qe5 46. Qc8 Qf5) 45. Qb7 {[%emt 0:00:07]} Rf6 {[%emt 0:00:08]} 46. Kg2 {[%emt 0:00:13]} Qf5 {[%emt 0:00:03]} 47. Qb8 {[%emt 0:01:08]} Re6 {[%emt 0:00:04]} 48. Kg1 {[%emt 0:00:07]} Rf6 {[%emt 0:00:05]} 49. Kg2 {[%emt 0:01:01] Weighted Error Value: White=0.10 (very precise) /Black=0.11 (very precise)} 1/2-1/2

[Event "FIDE WTC Prel-B 2022"]
[Site "Jerusalem"]
[Date "2022.11.22"]
[Round "5.12"]
[White "Kevlishvili, Robby"]
[Black "Oleksiyenko, Mykhaylo"]
[Result "1/2-1/2"]
[ECO "C07"]
[WhiteElo "2536"]
[BlackElo "2594"]
[Annotator "TA"]
[PlyCount "92"]
[EventDate "2022.11.20"]
[EventType "team-tourn"]
[EventCountry "ISR"]
[SourceTitle "playchess.com"]
[Source "ChessBase"]
[SourceQuality "1"]
[WhiteTeam "Netherlands"]
[BlackTeam "Ukraine"]
[WhiteTeamCountry "NED"]
[BlackTeamCountry "UKR"]
[TimeControl "2700+10"]

{[%evp 11,92,13,7,0,0,0,16,8,21,29,60,22,16,9,20,14,19,25,27,16,28,10,15,10,21,16,22,13,22,15,22,24,28,25,53,42,52,23,10,27,24,27,23,8,75,77,77,77,75,72,86,81,81,74,81,15,18,12,39,45,56,56,61,75,75,3,3,2,1,0,0,0,0,0,0,0,0,0,0,0,0,0,0]} 1. e4 {[%emt 0:00:03]} e6 {[%emt 0:00:03]} 2. d4 {[%emt 0:00:04]} d5 {[%emt 0:00:03]} 3. Nd2 {[%emt 0:00:04]} c5 {[%emt 0:00:05]} 4. Ngf3 {[%emt 0:00:24]} cxd4 {[%emt 0:00:05]} 5. Nxd4 {[%emt 0:00:03]} Nf6 {[%emt 0:00:14]} 6. exd5 {[%emt 0:00:06]} Nxd5 {[%emt 0:00:07]} 7. g3 {[%emt 0:00:59] C07: French Tarrasch: 3...c5, 4 Ngf3 and 4 exd5 Qxd5.} Be7 {[%emt 0:00:23]} 8. N2f3 {[%emt 0:00:04] Prevents e5.} O-O {[%emt 0:01:03][%cal Oe6e5]} 9. Bg2 {[%emt 0:00:11]} Qc7 {[%emt 0:00:48]} 10. O-O {[%emt 0:00:15] [#]} b6 $146 {[%emt 0:01:37]} ({Predecessor:} 10... Bf6 11. Qe2 a6 12. Rd1 h6 13. c4 Nb6 14. b3 e5 15. Nc2 Nc6 16. Ba3 Be7 17. Bxe7 Qxe7 {1-0 (35) Savon,V (2540)-Kogan,B Beltsy 1977}) 11. Bd2 {[%emt 0:09:12]} Bb7 {[%emt 0:06:35]} 12. Rc1 {[%emt 0:00:28]} a6 {[%emt 0:00:46]} 13. c4 {[%emt 0:00:11]} Nf6 {[%emt 0:00:12]} 14. Bf4 {[%emt 0:00:25]} Qc8 {[%emt 0:00:18]} 15. Qe2 {[%emt 0:00:07]} (15. Ne5 {seems wilder.} Bc5 16. Bxb7 Qxb7 17. Qf3) 15... Nc6 {[%emt 0:01:03]} 16. Be3 {[%emt 0:00:20]} Rd8 {[%emt 0:02:50]} 17. Rfd1 {[%emt 0:01:00]} Bc5 {[%emt 0:02:13]} 18. Nxc6 {[%emt 0:01:40]} Qxc6 {[%emt 0:01:17]} 19. Ne1 {[%emt 0:00:14][%cal Bf3e1,Be1d3,Bd3c5][%mdl 32]} Qc7 {[%emt 0:02:37]} 20. Bxc5 {[%emt 0:00:36]} bxc5 {[%emt 0:01:13]} 21. Bxb7 {[%emt 0:00:08]} Qxb7 {[%emt 0:00:13]} 22. Nd3 {[%emt 0:00:06]} Rdc8 {[%emt 0:02:25]} 23. Qe3 {[%emt 0:02:11]} h6 {[%emt 0:04:08]} 24. Nxc5 {[%emt 0:01:46]} Qxb2 {[%emt 0:02:50]} 25. Na4 {[%emt 0:00:14]} Qb4 {[%emt 0:00:40]} 26. Nb6 {[%emt 0:00:04]} Ng4 {[%emt 0:00:02]} 27. Qd4 {[%emt 0:04:30]} e5 {[%emt 0:02:08]} (27... Rd8 $1 $11 {remains equal.} 28. Nd7 (28. Qxg4 Qxb6 29. c5 Qc6 $11) (28. Qxd8+ Rxd8 29. Rxd8+ Kh7 $17) 28... Qa4) 28. Qxg4 $16 {[%emt 0:00:57]} Qxb6 {[%emt 0:00:01] [#]} 29. Qe4 $1 {[%emt 0:00:48]} Qe6 {[%emt 0:06:18]} 30. Rd5 {[%emt 0:00:17] White is much more active.} Re8 {[%emt 0:00:12]} 31. Re1 {[%emt 0:01:42][%cal Rd5e5]} Rac8 {[%emt 0:00:43]} 32. c5 {[%emt 0:00:51][%cal Rd5e5] Against Qb6} f5 {[%emt 0:00:51]} 33. Qd3 {[%emt 0:00:04]} (33. Qxe5 $2 {loses.} Qc6 34. Rc1 Rxe5 $19) ({White should try} 33. Qf3 $16) 33... e4 $11 {[%emt 0:00:56]} 34. Qd4 {[%emt 0:00:01]} Rc6 {[%emt 0:00:10][%cal Of5f4]} 35. Rb1 {[%emt 0:04:41]} e3 {[%emt 0:02:01]} 36. fxe3 {[%emt 0:00:06]} Qxe3+ {[%emt 0:00:09]} 37. Qxe3 {[%emt 0:00:13]} Rxe3 {[%emt 0:00:01]} 38. Rxf5 $14 {[%emt 0:06:30][%mdl 4096] Endgame KRR-KRR} (38. Rb6 $16 Ree6 39. Rb8+ (39. Rxf5 Rxb6 40. cxb6 Rxb6 $11) 39... Kh7 40. Kf2 (40. Rxf5 Re1+ 41. Kf2 Rc1 $11)) 38... Rc3 $11 {[%emt 0:01:01] The position is equal.} 39. Rb8+ {[%emt 0:01:09]} Kh7 {[%emt 0:00:01]} 40. Ra8 {[%emt 0:00:09]} Ra3 {[%emt 0:00:50]} 41. Ra7 {[%emt 0:02:13]} Rxa2 {[%emt 0:00:10]} 42. Rff7 {[%emt 0:00:13]} Rxc5 {[%emt 0:00:50]} 43. Rxg7+ {[%emt 0:00:02]} Kh8 {[%emt 0:00:01][%cal Rc5c1] [#]} 44. Rh7+ {[%emt 0:00:02]} Kg8 {[%emt 0:00:01][%cal Rc5c1]} 45. Rhg7+ {[%emt 0:00:02]} (45. Rxh6 $2 Rc1#) 45... Kh8 {[%emt 0:00:00][%cal Rc5c1]} 46. Rh7+ {[%emt 0:00:02]} Kg8 {[%emt 0:00:01] Weighted Error Value: White=0.08 (flawless) /Black=0.09 (flawless)} 1/2-1/2

[Event "FIDE WTC Prel-B 2022"]
[Site "Jerusalem"]
[Date "2022.11.22"]
[Round "5.13"]
[White "Mamedyarov, Shakhriyar"]
[Black "Rodshtein, Maxim"]
[Result "1-0"]
[ECO "E11"]
[WhiteElo "2741"]
[BlackElo "2618"]
[Annotator "TA"]
[PlyCount "91"]
[EventDate "2022.11.20"]
[EventType "team-tourn"]
[EventCountry "ISR"]
[SourceTitle "playchess.com"]
[Source "ChessBase"]
[SourceQuality "1"]
[WhiteTeam "Azerbaijan"]
[BlackTeam "Israel"]
[WhiteTeamCountry "AZE"]
[BlackTeamCountry "ISR"]
[TimeControl "2700+10"]

{[%evp 15,91,0,10,6,12,0,6,16,11,12,20,19,25,18,23,6,8,0,0,0,0,0,0,0,0,8,38,27,14,0,0,0,7,0,0,0,0,-24,-20,-86,0,0,0,0,5,8,164,164,191,192,163,144,150,146,117,166,167,178,166,159,193,190,282,268,716,729,665,622,901,889,829,757,583,309,6012,5929,1821,1216]} 1. d4 {[%emt 0:00:02]} Nf6 {[%emt 0:00:07]} 2. c4 {[%emt 0:00:03]} e6 {[%emt 0:00:05]} 3. Nf3 {[%emt 0:00:02]} d5 {[%emt 0:00:03]} 4. g3 {[%emt 0:00:05]} Bb4+ {[%emt 0:00:22]} 5. Bd2 {[%emt 0:00:13]} Be7 {[%emt 0:00:07]} 6. Bg2 {[%emt 0:00:03]} O-O {[%emt 0:00:12]} 7. O-O {[%emt 0:00:04]} c6 {[%emt 0:00:05]} 8. Qc2 {[%emt 0:00:05]} Nbd7 {[%emt 0:00:17]} 9. Rc1 {[%emt 0:00:05] E11: Bogo-Indian.} a5 {[%emt 0:00:56]} 10. e3 $5 {[%emt 0:00:59][%mdl 4] [#] Exploring less charted territory.} Ne4 $146 {[%emt 0:02:10]} ({Predecessor:} 10... b5 11. cxb5 cxb5 12. a3 Ne4 13. Be1 a4 14. Nc3 Nd6 15. Bf1 Ba6 16. Bd3 g6 {½-½ (35) Abasov,N (2646)-Niemann,H (2699) Saint Louis 2022}) 11. Be1 {[%emt 0:01:05] The position is equal.} f5 {[%emt 0:02:21]} 12. Nc3 {[%emt 0:00:24]} Bd6 {[%emt 0:04:32]} 13. a3 {[%emt 0:03:18][%cal Ob2b4]} g5 {[%emt 0:05:40]} 14. b4 {[%emt 0:11:38]} g4 {[%emt 0:10:25]} 15. Nd2 {[%emt 0:03:17][%cal Rd2e4]} axb4 {[%emt 0:01:58]} 16. axb4 {[%emt 0:03:09]} (16. Ndxe4 {is interesting.} dxe4 17. axb4 Rxa1 18. Rxa1 Bxb4 19. Nxe4 Bxe1 20. Nd6) 16... Rxa1 {[%emt 0:00:08]} 17. Rxa1 {[%emt 0:00:02][%cal Rd2e4]} Bxb4 {[%emt 0:07:21][%cal Bd6b4,Bb4e1,Be1a5,Ba5c7,Bc7b8][%mdl 32]} 18. Ndxe4 {[%emt 0:01:03]} dxe4 {[%emt 0:00:29]} 19. Nxe4 {[%emt 0:03:37]} Bxe1 {[%emt 0:00:55]} 20. Nd6 $1 {[%emt 0:00:05]} Ba5 {[%emt 0:03:54] White must now prevent ...Bc7.} (20... Nf6 $5 {[%cal Re1f2]} 21. c5 (21. Nxc8 Bxf2+ 22. Qxf2 Qxc8 $11) 21... Ba5 22. Nxc8 Bc7 $11) 21. Nxc8 {[%emt 0:00:24]} Bc7 {[%emt 0:00:32] Against Nd6} 22. Ra8 {[%emt 0:02:32] And now c5 would win.} Bb8 $1 {[%emt 0:02:10]} 23. Nd6 {[%emt 0:00:16]} Qe7 $132 {[%emt 0:00:09][%mdl 2048] Black is fighting back} 24. Nxb7 {[%emt 0:00:18]} Nb6 {[%emt 0:00:03][%csl LRa8,LRb7]} 25. Rxb8 {[%emt 0:00:06]} Rxb8 {[%emt 0:00:03]} 26. Nc5 {[%emt 0:00:39]} (26. Na5 $5 {[%cal Ra5c6]} Qb4 27. Nxc6 Qe1+ 28. Bf1 $11) 26... Nd7 {[%emt 0:01:06]} 27. Nd3 {[%emt 0:03:36] [#]} (27. Nxd7 $1 $11 Qxd7 28. h4) 27... c5 {[%emt 0:00:12]} (27... Qa3 $1 $17 {Strongly threatening ...Nf6.} 28. h4 (28. Bxc6 $2 Qa1+ 29. Kg2 Rb1 $19) 28... gxh3 29. Bxh3 Qb3 30. Qxb3 Rxb3) 28. h3 $11 {[%emt 0:00:28]} gxh3 {[%emt 0:02:43]} 29. Bxh3 {[%emt 0:00:05]} h5 {[%emt 0:00:26]} 30. d5 {[%emt 0:00:52]} exd5 {[%emt 0:00:13]} (30... h4 $1 $11 {and Black stays safe.}) 31. Bxf5 $18 {[%emt 0:00:57]} h4 {[%emt 0:00:20]} 32. Nf4 {[%emt 0:00:14]} (32. cxd5 hxg3 33. Qa4 Rb1+ 34. Kg2 gxf2 35. Nxf2 Qg7+ 36. Ng4 (36. Qg4 Qxg4+ 37. Nxg4 Rb2+ 38. Kf1 Nb8 $11) 36... Qb2+ 37. Nf2 Qg7+ 38. Ng4 (38. Qg4 Qxg4+ 39. Nxg4 Rb2+ 40. Kf1 Nb8 $11) 38... Qb2+ 39. Nf2 Qg7+ $11) 32... Nf8 {[%emt 0:00:15] Against Be6+} 33. Nxd5 {[%emt 0:00:49]} Qe5 {[%emt 0:00:09]} 34. gxh4 {[%emt 0:00:48][%cal Bg3h4,Bh4h5,Bh5h6][%mdl 32]} Rb7 {[%emt 0:00:02]} 35. Nf4 {[%emt 0:01:54]} Rf7 {[%emt 0:00:17]} 36. Be4 {[%emt 0:00:46] Hoping for Bd5.} Rg7+ {[%emt 0:00:03]} 37. Kf1 {[%emt 0:00:26]} Rg4 {[%emt 0:00:14]} 38. h5 {[%emt 0:00:24]} Kg7 {[%emt 0:00:26] [#]} (38... Qa1+ $142 39. Ke2 (39. Qb1 Qxb1+ 40. Bxb1 Rg7 $16) 39... Rg1) 39. Qb1 $1 {[%emt 0:01:06] Threatens to win with Qb7+.} Kh6 $2 {[%emt 0:00:00]} (39... Kh8 40. Bd5 Qf6) 40. Qb6+ {[%emt 0:00:12]} Kg7 {[%emt 0:00:08]} 41. Qb7+ {[%emt 0:00:45]} Kh6 {[%emt 0:00:09]} 42. Qc6+ {[%emt 0:00:33]} Kg7 {[%emt 0:00:05]} 43. h6+ {[%emt 0:00:01]} Kh8 {[%emt 0:00:01]} 44. Qc8 {[%emt 0:00:46]} Rxf4 {[%emt 0:00:23]} (44... Qxe4 45. Qxg4 (45. Qxf8+ Rg8 $16) 45... Qxc4+ 46. Kg2 Qg8) 45. exf4 {[%emt 0:00:03]} Qxf4 {[%emt 0:00:02]} 46. Qxc5 {[%emt 0:00:13] Weighted Error Value: White=0.22 (precise) /Black=0.20 (precise)} 1-0

[Event "FIDE WTC Prel-B 2022"]
[Site "Jerusalem"]
[Date "2022.11.22"]
[Round "5.14"]
[White "Nabaty, Tamir"]
[Black "Radjabov, Teimour"]
[Result "1-0"]
[ECO "A48"]
[WhiteElo "2629"]
[BlackElo "2747"]
[Annotator "TA"]
[PlyCount "109"]
[EventDate "2022.11.20"]
[EventType "team-tourn"]
[EventCountry "ISR"]
[SourceTitle "playchess.com"]
[Source "ChessBase"]
[SourceQuality "1"]
[WhiteTeam "Israel"]
[BlackTeam "Azerbaijan"]
[WhiteTeamCountry "ISR"]
[BlackTeamCountry "AZE"]
[TimeControl "2700+10"]

{[%evp 11,109,0,0,0,0,0,0,9,6,0,0,10,10,12,9,24,15,14,12,16,41,35,49,24,30,36,52,54,40,36,39,33,29,21,36,35,52,21,35,31,29,10,37,36,43,-29,0,0,0,0,0,0,8,8,24,0,0,-100,-92,-87,-64,-125,-15,-66,0,0,13,13,26,26,78,78,126,105,174,145,319,319,394,394,394,237,218,209,230,156,401,301,424,379,376,262,2074,1949,1738,1954,1565,1471,1220,1053]} 1. d4 {[%emt 0:00:02]} Nf6 {[%emt 0:00:01]} 2. Bf4 {[%emt 0:00:02]} g6 {[%emt 0:00:02]} 3. c3 {[%emt 0:00:01]} Bg7 {[%emt 0:00:05]} 4. Nd2 {[%emt 0:00:03]} d6 {[%emt 0:00:04]} 5. e4 {[%emt 0:00:05]} O-O {[%emt 0:00:11]} 6. Ngf3 {[%emt 0:00:04]} Nbd7 {[%emt 0:00:09]} 7. Be2 {[%emt 0:00:14] A48: 1 d4 Nf6 2 Nf3 g6: Torre, London and Colle Systems.} Re8 {[%emt 0:02:50]} 8. h3 {[%emt 0:00:08]} e5 {[%emt 0:00:12]} 9. dxe5 {[%emt 0:00:03] The position is equal.} dxe5 {[%emt 0:00:33]} 10. Be3 {[%emt 0:00:02]} Nh5 {[%emt 0:01:22] [#]} 11. O-O $146 {[%emt 0:00:03]} ({Predecessor:} 11. g3 c6 12. Nh4 Nhf6 13. Qc2 b5 14. a4 bxa4 15. Rxa4 Nb6 16. Ra1 Be6 17. Nhf3 {0-1 (63) Bueno,J-Gazola,G Santa Cruz do Sul 2007}) 11... Nf4 {[%emt 0:01:53]} 12. Bc4 {[%emt 0:00:04]} Nb6 {[%emt 0:01:13]} 13. Bb3 {[%emt 0:00:05]} Qf6 {[%emt 0:00:35]} 14. h4 {[%emt 0:00:07]} Bg4 {[%emt 0:06:36]} 15. g3 {[%emt 0:00:03]} Ne6 {[%emt 0:05:12]} 16. Kg2 {[%emt 0:03:59]} h6 {[%emt 0:01:44]} 17. a4 {[%emt 0:02:41]} Rad8 {[%emt 0:03:37][%cal Od8d2]} 18. Qc2 {[%emt 0:00:14]} a5 {[%emt 0:04:37]} 19. Rfe1 {[%emt 0:02:17]} Nf8 {[%emt 0:00:20]} 20. Nh2 {[%emt 0:06:01]} Bd7 {[%emt 0:02:07]} 21. Nc4 {[%emt 0:06:55]} Nxc4 {[%emt 0:00:19]} 22. Bxc4 {[%emt 0:01:30]} Ne6 {[%emt 0:01:54]} 23. Rad1 {[%emt 0:01:27]} Qe7 {[%emt 0:00:41]} 24. Qb3 {[%emt 0:01:17]} b6 {[%emt 0:00:15]} 25. Nf3 {[%emt 0:04:25]} Bc8 {[%emt 0:05:43]} 26. Bd5 {[%emt 0:05:18]} Kh7 {[%emt 0:01:11]} 27. h5 {[%emt 0:01:02]} g5 {[%emt 0:00:31]} 28. Rd2 {[%emt 0:01:02]} (28. Nh2 $14) 28... Rd6 {[%emt 0:03:04]} 29. Red1 {[%emt 0:04:03]} Red8 {[%emt 0:00:12]} 30. Bc4 {[%emt 0:01:23]} Rxd2 {[%emt 0:01:49]} 31. Rxd2 {[%emt 0:00:02]} Rxd2 {[%emt 0:00:10]} 32. Nxd2 {[%emt 0:00:09]} Qd7 {[%emt 0:00:01]} 33. Nf1 {[%emt 0:03:50]} Bf8 {[%emt 0:00:21]} 34. f3 {[%emt 0:00:36]} (34. Bb5 $11 {remains equal.} Nf4+ 35. Kg1 (35. gxf4 Qg4+ 36. Kh1 Qf3+ 37. Kg1 Be6 $15) (35. Bxf4 Qh3+ 36. Kg1 Be6 $11)) 34... Nc5 $17 {[%emt 0:00:09]} 35. Qa2 {[%emt 0:01:24]} Kg7 {[%emt 0:00:42]} (35... Nxa4 36. Bxf7 Kg7 37. Bg6 $14) 36. g4 {[%emt 0:00:08] [#]} (36. b3 $15) 36... Qd1 {[%emt 0:00:19]} (36... Nxa4 37. Ng3 $15) (36... Nxe4 $1 $17 {[%mdl 512] aiming for ...Nf6.} 37. Bb5 (37. fxe4 Qxg4+) 37... Qd1) 37. b3 {[%emt 0:00:17] [#]} (37. Bxc5 $11 Bxc5 38. b3) 37... Nd3 {[%emt 0:00:20]} (37... Bxg4 $2 38. Be2 Bxf3+ 39. Bxf3 (39. Kxf3 Qd7 $11) 39... Qxb3 40. Qxb3 Nxb3 41. Bd1 $18) ({Black should play} 37... Nxe4 $1 $15 38. fxe4 Qxg4+ 39. Kh2 Bb7) 38. Qd2 $11 {[%emt 0:00:11]} Qxd2+ {[%emt 0:00:06]} 39. Bxd2 {[%emt 0:00:09]} Nf4+ {[%emt 0:00:03]} 40. Kf2 {[%emt 0:00:08]} Be6 {[%emt 0:00:24]} (40... Bd7 $11 {keeps the balance.}) 41. Bxe6 $16 {[%emt 0:00:10]} Nxe6 {[%emt 0:00:03][%mdl 4096] Endgame KBN-KBN} (41... fxe6 $142 42. Ke1 c6) 42. b4 {[%emt 0:00:11]} axb4 {[%emt 0:00:18]} (42... b5 $16) 43. cxb4 $18 {[%emt 0:00:01]} Nd4 $2 {[%emt 0:00:02]} (43... Kf6 $16 44. a5 Nd4) 44. Ne3 {[%emt 0:00:11]} c6 {[%emt 0:00:02]} 45. Bc3 {[%emt 0:00:15]} Kf6 {[%emt 0:00:07]} 46. a5 {[%emt 0:00:15]} bxa5 {[%emt 0:00:14]} 47. bxa5 {[%emt 0:00:01] Hoping for Bxd4.} Nb5 {[%emt 0:00:10]} 48. Bb2 {[%emt 0:00:14]} Bc5 $2 {[%emt 0:00:01] This move loses the game for Black.} (48... Ke6 $16) 49. Ke2 {[%emt 0:00:01]} Bxe3 {[%emt 0:00:33]} (49... Bb4 {was worth a try.} 50. Nc4 Ke6 51. Bxe5 (51. Nxe5 Bxa5 52. Nxc6 Bc3 $18) 51... Bxa5) 50. Kxe3 {[%emt 0:00:01] KB-KN} Nc7 {[%emt 0:00:00]} 51. Ba3 {[%emt 0:00:09]} Na6 $2 {[%emt 0:00:21]} (51... Ke6 52. Bf8 f6) 52. Bf8 {[%emt 0:00:12] White is clearly winning.} Ke6 {[%emt 0:00:06]} 53. Bxh6 {[%emt 0:00:13] Threatens to win with Bf8.} f6 {[%emt 0:00:04]} 54. Bf8 {[%emt 0:00:02] Threatening mate with h6.} Kf7 {[%emt 0:00:10]} 55. Bd6 {[%emt 0:00:06] Weighted Error Value: White=0.15 (very precise) /Black=0.24 (precise)} 1-0